[Event "*** Titled Tuesday Blitz"]
[Site "Chess.com"]
[Date "2020.05.12"]
[Round "3"]
[White "LawrenceTrent"]
[Black "Stronger1799"]
[Result "1-0"]
[WhiteElo "2524"]
[BlackElo "2293"]
[TimeControl "180+1"]
[EndTime "10:28:46 PDT"]
[Termination "LawrenceTrent won on time"]

1. e4 {[%clk 0:01:16.9]} 1... c5 {[%clk 0:02:28.3]} 2. Nf3 {[%clk 0:01:16.3]}
2... e6 {[%clk 0:02:28.6]} 3. d4 {[%clk 0:01:16.5]} 3... cxd4 {[%clk 0:02:29.5]}
4. Nxd4 {[%clk 0:01:17.4]} 4... Nf6 {[%clk 0:02:29.7]} 5. c3 {[%clk 0:01:17.4]}
5... d6 {[%clk 0:02:30.2]} 6. Bd3 {[%clk 0:01:17.7]} 6... Be7 {[%clk 0:02:29.8]}
7. O-O {[%clk 0:01:18.2]} 7... O-O {[%clk 0:02:30.3]} 8. Nd2 {[%clk 0:01:18.4]}
8... b6 {[%clk 0:02:29.6]} 9. Qf3 {[%clk 0:01:16.8]} 9... Bb7 {[%clk 0:02:29.5]}
10. Qh3 {[%clk 0:01:17.1]} 10... Nbd7 {[%clk 0:02:27.6]} 11. f4 {[%clk
0:01:17.3]} 11... Nc5 {[%clk 0:02:24.5]} 12. Bc2 {[%clk 0:01:08.3]} 12... Ncxe4
{[%clk 0:02:21.9]} 13. Nxe4 {[%clk 0:01:07.4]} 13... Bxe4 {[%clk 0:02:04.7]} 14.
Bxe4 {[%clk 0:01:06.9]} 14... Nxe4 {[%clk 0:02:01.1]} 15. Nxe6 {[%clk
0:01:07.6]} 15... Qc8 {[%clk 0:01:25.3]} 16. Nxf8 {[%clk 0:01:06.4]} 16... Qxh3
{[%clk 0:01:25.8]} 17. gxh3 {[%clk 0:01:06.4]} 17... Rxf8 {[%clk 0:01:23.9]} 18.
Be3 {[%clk 0:01:05.6]} 18... f5 {[%clk 0:01:23.6]} 19. Bd4 {[%clk 0:01:03.3]}
19... Re8 {[%clk 0:01:15.1]} 20. Rad1 {[%clk 0:01:03.2]} 20... Bh4 {[%clk
0:01:08.8]} 21. Kg2 {[%clk 0:01:01.6]} 21... Re6 {[%clk 0:01:07.4]} 22. Kf3
{[%clk 0:01:01]} 22... Rh6 {[%clk 0:01:06.3]} 23. Rg1 {[%clk 0:00:59.6]} 23...
g6 {[%clk 0:01:04.8]} 24. Kg2 {[%clk 0:00:56.5]} 24... Be7 {[%clk 0:00:59.7]}
25. c4 {[%clk 0:00:54.6]} 25... Rh4 {[%clk 0:00:51.8]} 26. Be3 {[%clk
0:00:54.2]} 26... Bf6 {[%clk 0:00:50]} 27. b3 {[%clk 0:00:52.5]} 27... Kf7
{[%clk 0:00:50]} 28. a4 {[%clk 0:00:51.6]} 28... h6 {[%clk 0:00:28.1]} 29. Rgf1
{[%clk 0:00:50.6]} 29... Ke6 {[%clk 0:00:27.5]} 30. Rd5 {[%clk 0:00:46]} 30...
Nc3 {[%clk 0:00:25.1]} 31. Rd3 {[%clk 0:00:46.1]} 31... Ne4 {[%clk 0:00:25.3]}
32. Bc1 {[%clk 0:00:43.3]} 32... g5 {[%clk 0:00:24.6]} 33. fxg5 {[%clk
0:00:42.4]} 33... hxg5 {[%clk 0:00:25.5]} 34. Rd5 {[%clk 0:00:41.1]} 34... Be5
{[%clk 0:00:21.8]} 35. a5 {[%clk 0:00:39.7]} 35... g4 {[%clk 0:00:15.5]} 36.
axb6 {[%clk 0:00:36.6]} 36... axb6 {[%clk 0:00:14.8]} 37. Rd3 {[%clk 0:00:36.2]}
37... Nc5 {[%clk 0:00:12.5]} 38. Re3 {[%clk 0:00:34.5]} 38... gxh3+ {[%clk
0:00:11.5]} 39. Rxh3 {[%clk 0:00:34.5]} 39... Rxh3 {[%clk 0:00:11.8]} 40. Kxh3
{[%clk 0:00:34.4]} 40... Nxb3 {[%clk 0:00:12.7]} 41. Be3 {[%clk 0:00:34.5]}
41... Bd4 {[%clk 0:00:06.3]} 42. Bxd4 {[%clk 0:00:31.1]} 42... Nxd4 {[%clk
0:00:07.2]} 43. Rb1 {[%clk 0:00:32]} 43... Nf3 {[%clk 0:00:02.8]} 44. Rxb6
{[%clk 0:00:31.7]} 44... Nd2 {[%clk 0:00:03.1]} 45. c5 {[%clk 0:00:31.8]} 45...
Nc4 {[%clk 0:00:02.4]} 46. Ra6 {[%clk 0:00:32]} 46... Ke5 {[%clk 0:00:01.3]} 47.
c6 {[%clk 0:00:31.9]} 1-0

[Event "*** Titled Tuesday Blitz"]
[Site "Chess.com"]
[Date "2020.05.12"]
[Round "3"]
[White "heartofatiger"]
[Black "Mykola-Bortnyk"]
[Result "0-1"]
[WhiteElo "2454"]
[BlackElo "2870"]
[TimeControl "180+1"]
[EndTime "10:28:48 PDT"]
[Termination "Mykola-Bortnyk won by resignation"]

1. d4 {[%clk 0:03:00.9]} 1... Nf6 {[%clk 0:02:57.4]} 2. c4 {[%clk 0:03:01.5]}
2... e5 {[%clk 0:02:54.4]} 3. dxe5 {[%clk 0:03:00.5]} 3... Ne4 {[%clk
0:02:44.2]} 4. Nd2 {[%clk 0:02:58.6]} 4... Bb4 {[%clk 0:02:17.7]} 5. Nf3 {[%clk
0:02:55.8]} 5... Nc6 {[%clk 0:02:12.5]} 6. a3 {[%clk 0:02:48.6]} 6... Bxd2+
{[%clk 0:02:11.8]} 7. Bxd2 {[%clk 0:02:48.1]} 7... Qe7 {[%clk 0:02:10.5]} 8. Bf4
{[%clk 0:02:26]} 8... g5 {[%clk 0:01:51.5]} 9. Be3 {[%clk 0:02:21.2]} 9... g4
{[%clk 0:01:39]} 10. Nd2 {[%clk 0:02:09.8]} 10... Qxe5 {[%clk 0:01:32.5]} 11.
Nxe4 {[%clk 0:02:09.3]} 11... Qxe4 {[%clk 0:01:33.4]} 12. Qd3 {[%clk 0:01:43.3]}
12... Qe5 {[%clk 0:01:18.8]} 13. Bd2 {[%clk 0:01:26.7]} 13... Qd4 {[%clk
0:00:34]} 14. Qc2 {[%clk 0:01:18.6]} 14... O-O {[%clk 0:00:28.5]} 15. e3 {[%clk
0:01:08.2]} 15... Qg7 {[%clk 0:00:27.9]} 16. Bc3 {[%clk 0:01:06.5]} 16... Ne5
{[%clk 0:00:28.1]} 17. O-O-O {[%clk 0:00:59.3]} 17... d6 {[%clk 0:00:28.4]} 18.
f4 {[%clk 0:00:57.2]} 18... gxf3 {[%clk 0:00:27.2]} 19. gxf3 {[%clk 0:00:57.4]}
19... f6 {[%clk 0:00:17.8]} 20. f4 {[%clk 0:00:49.7]} 20... Ng4 {[%clk
0:00:14.6]} 21. Rg1 {[%clk 0:00:42.4]} 21... Kh8 {[%clk 0:00:15.3]} 22. h3
{[%clk 0:00:22.5]} 22... Nxe3 {[%clk 0:00:15.6]} 23. Qh2 {[%clk 0:00:18.5]}
23... Qf7 {[%clk 0:00:12.5]} 24. Rd3 {[%clk 0:00:17.1]} 24... Nxf1 {[%clk
0:00:12.5]} 25. Rxf1 {[%clk 0:00:16.7]} 25... Bf5 {[%clk 0:00:13.3]} 26. Rg3
{[%clk 0:00:16.1]} 26... Qxc4 {[%clk 0:00:12.4]} 27. Rfg1 {[%clk 0:00:15.2]}
27... Qxf4+ {[%clk 0:00:12.5]} 28. Kd1 {[%clk 0:00:13.7]} 28... Bg6 {[%clk
0:00:10.9]} 29. h4 {[%clk 0:00:12.5]} 29... Qf5 {[%clk 0:00:08.1]} 30. Qd2
{[%clk 0:00:11]} 30... Qb1+ {[%clk 0:00:07.9]} 31. Qc1 {[%clk 0:00:10.8]} 31...
Qxc1+ {[%clk 0:00:07.5]} 32. Kxc1 {[%clk 0:00:10.8]} 32... Rf7 {[%clk 0:00:05]}
33. Rh1 {[%clk 0:00:08.1]} 33... Bh5 {[%clk 0:00:04.5]} 34. Rf1 {[%clk
0:00:07.3]} 34... Bg6 {[%clk 0:00:05.2]} 35. Bxf6+ {[%clk 0:00:04.3]} 35... Kg8
{[%clk 0:00:05.6]} 36. h5 {[%clk 0:00:04.6]} 36... Raf8 {[%clk 0:00:06.3]} 37.
hxg6 {[%clk 0:00:02.4]} 37... Rxf6 {[%clk 0:00:06.7]} 38. gxh7+ {[%clk
0:00:03.1]} 38... Kxh7 {[%clk 0:00:06.3]} 39. Rh1+ {[%clk 0:00:03.2]} 39... Rh6
{[%clk 0:00:06.3]} 40. Rhg1 {[%clk 0:00:03.9]} 40... Rf7 {[%clk 0:00:06.4]} 41.
R1g2 {[%clk 0:00:03.8]} 41... a6 {[%clk 0:00:06.9]} 42. Kc2 {[%clk 0:00:04.7]}
42... b6 {[%clk 0:00:07.5]} 43. b3 {[%clk 0:00:05.2]} 43... a5 {[%clk
0:00:08.4]} 44. a4 {[%clk 0:00:06.1]} 44... c6 {[%clk 0:00:08.6]} 45. Rc3 {[%clk
0:00:06.5]} 45... d5 {[%clk 0:00:08.5]} 46. Kb2 {[%clk 0:00:05.8]} 46... d4
{[%clk 0:00:08.8]} 47. Rgc2 {[%clk 0:00:05.9]} 47... dxc3+ {[%clk 0:00:08.8]}
0-1

[Event "*** Titled Tuesday Blitz"]
[Site "Chess.com"]
[Date "2020.05.12"]
[Round "3"]
[White "Malev212"]
[Black "ElGasanov"]
[Result "0-1"]
[WhiteElo "2519"]
[BlackElo "2731"]
[TimeControl "180+1"]
[EndTime "10:28:49 PDT"]
[Termination "ElGasanov won on time"]

1. d4 {[%clk 0:02:56.4]} 1... d6 {[%clk 0:03:00.2]} 2. Nf3 {[%clk 0:02:53]} 2...
Bg4 {[%clk 0:02:58.8]} 3. c4 {[%clk 0:02:52.5]} 3... Nd7 {[%clk 0:02:59]} 4. Qb3
{[%clk 0:02:49.9]} 4... Rb8 {[%clk 0:02:55.9]} 5. h3 {[%clk 0:02:49.7]} 5... Bh5
{[%clk 0:02:54.2]} 6. Nc3 {[%clk 0:02:37.1]} 6... Ngf6 {[%clk 0:02:52.5]} 7. g3
{[%clk 0:02:18.5]} 7... e5 {[%clk 0:02:42.7]} 8. Bg2 {[%clk 0:02:10.6]} 8... Be7
{[%clk 0:02:36]} 9. O-O {[%clk 0:02:08.4]} 9... O-O {[%clk 0:02:33.3]} 10. Rd1
{[%clk 0:02:05.8]} 10... Qc8 {[%clk 0:02:17.5]} 11. Be3 {[%clk 0:02:00.7]} 11...
a6 {[%clk 0:02:04]} 12. Rac1 {[%clk 0:01:58.5]} 12... Re8 {[%clk 0:02:00.4]} 13.
Nh4 {[%clk 0:01:48.2]} 13... Bf8 {[%clk 0:01:53.4]} 14. Qc2 {[%clk 0:01:47.8]}
14... c6 {[%clk 0:01:43.7]} 15. dxe5 {[%clk 0:01:35.5]} 15... Nxe5 {[%clk
0:01:37.1]} 16. b3 {[%clk 0:01:28.3]} 16... b5 {[%clk 0:01:18.4]} 17. cxb5
{[%clk 0:01:24.6]} 17... axb5 {[%clk 0:01:19]} 18. Bd4 {[%clk 0:00:56.2]} 18...
c5 {[%clk 0:01:03.7]} 19. Bxe5 {[%clk 0:00:50.3]} 19... Rxe5 {[%clk 0:01:04.1]}
20. g4 {[%clk 0:00:46.4]} 20... Bg6 {[%clk 0:00:54.4]} 21. Nxg6 {[%clk
0:00:45.5]} 21... hxg6 {[%clk 0:00:55]} 22. Nd5 {[%clk 0:00:39.2]} 22... Nxd5
{[%clk 0:00:53.3]} 23. Rxd5 {[%clk 0:00:38.9]} 23... Rxd5 {[%clk 0:00:52.4]} 24.
Bxd5 {[%clk 0:00:37.1]} 24... Qe8 {[%clk 0:00:38.9]} 25. a4 {[%clk 0:00:36]}
25... c4 {[%clk 0:00:33.1]} 26. axb5 {[%clk 0:00:32.7]} 26... cxb3 {[%clk
0:00:30.3]} 27. Qxb3 {[%clk 0:00:32.4]} 27... Qxe2 {[%clk 0:00:26.8]} 28. Bxf7+
{[%clk 0:00:29.5]} 28... Kh7 {[%clk 0:00:27.2]} 29. Bc4 {[%clk 0:00:26]} 29...
Qd2 {[%clk 0:00:26.3]} 30. Rd1 {[%clk 0:00:25.5]} 30... Qf4 {[%clk 0:00:24.3]}
31. Bd5 {[%clk 0:00:19.5]} 31... Be7 {[%clk 0:00:20.5]} 32. Re1 {[%clk
0:00:13.4]} 32... Bf6 {[%clk 0:00:18]} 33. Re2 {[%clk 0:00:12.5]} 33... Bd4
{[%clk 0:00:17.6]} 34. Kg2 {[%clk 0:00:11.3]} 34... Rf8 {[%clk 0:00:16.8]} 35.
Qf3 {[%clk 0:00:08.8]} 35... Qxf3+ {[%clk 0:00:10.9]} 36. Bxf3 {[%clk
0:00:08.6]} 36... Rb8 {[%clk 0:00:11.6]} 37. Bc6 {[%clk 0:00:07.9]} 37... g5
{[%clk 0:00:10.8]} 38. Re6 {[%clk 0:00:06.7]} 38... Be5 {[%clk 0:00:07.9]} 39.
Kf3 {[%clk 0:00:05.1]} 39... Kg8 {[%clk 0:00:07.2]} 40. Re7 {[%clk 0:00:03.5]}
40... Kf8 {[%clk 0:00:06.8]} 41. Ra7 {[%clk 0:00:02.3]} 41... Bd4 {[%clk
0:00:06.5]} 42. Ra6 {[%clk 0:00:01.6]} 42... Bb6 {[%clk 0:00:04.9]} 43. Ke4
{[%clk 0:00:01.1]} 43... Ke7 {[%clk 0:00:05.4]} 0-1

[Event "*** Titled Tuesday Blitz"]
[Site "Chess.com"]
[Date "2020.05.12"]
[Round "3"]
[White "plumalka"]
[Black "tigra"]
[Result "1-0"]
[WhiteElo "2451"]
[BlackElo "2777"]
[TimeControl "180+1"]
[EndTime "10:28:49 PDT"]
[Termination "plumalka won by checkmate"]

1. e4 {[%clk 0:03:00.9]} 1... c5 {[%clk 0:03:00]} 2. Nf3 {[%clk 0:03:00.7]} 2...
e6 {[%clk 0:02:58.6]} 3. d4 {[%clk 0:02:58.1]} 3... cxd4 {[%clk 0:02:59.5]} 4.
Nxd4 {[%clk 0:02:58.9]} 4... Nf6 {[%clk 0:02:59.1]} 5. Nc3 {[%clk 0:02:57.1]}
5... d6 {[%clk 0:02:59.5]} 6. Bd3 {[%clk 0:02:54.9]} 6... Nc6 {[%clk 0:02:58.9]}
7. Nb3 {[%clk 0:02:54.9]} 7... g6 {[%clk 0:02:56.7]} 8. O-O {[%clk 0:02:53.5]}
8... Bg7 {[%clk 0:02:56.9]} 9. f4 {[%clk 0:02:51.9]} 9... O-O {[%clk 0:02:56.3]}
10. Qf3 {[%clk 0:02:47.6]} 10... a6 {[%clk 0:02:55.5]} 11. Bd2 {[%clk
0:02:47.5]} 11... Qc7 {[%clk 0:02:52.4]} 12. Rae1 {[%clk 0:02:47.3]} 12... b5
{[%clk 0:02:43.5]} 13. Kh1 {[%clk 0:02:37.8]} 13... Bb7 {[%clk 0:02:43.5]} 14.
Qh3 {[%clk 0:02:37.5]} 14... Nd7 {[%clk 0:02:05.7]} 15. f5 {[%clk 0:02:33.7]}
15... Rae8 {[%clk 0:01:54.2]} 16. Bg5 {[%clk 0:02:29.5]} 16... Nce5 {[%clk
0:01:46.6]} 17. f6 {[%clk 0:02:23]} 17... Bh8 {[%clk 0:01:46.4]} 18. Rf4 {[%clk
0:02:19.8]} 18... Qd8 {[%clk 0:01:40.5]} 19. Ref1 {[%clk 0:02:11]} 19... h5
{[%clk 0:01:40.9]} 20. Be2 {[%clk 0:02:01.2]} 20... b4 {[%clk 0:01:36.1]} 21.
Nd1 {[%clk 0:01:41.1]} 21... d5 {[%clk 0:01:35.1]} 22. Bxh5 {[%clk 0:01:40.2]}
22... gxh5 {[%clk 0:01:30.9]} 23. Qxh5 {[%clk 0:01:41.1]} 23... Ng6 {[%clk
0:01:31.3]} 24. R4f3 {[%clk 0:01:19.5]} 24... Nxf6 {[%clk 0:01:14.2]} 25. Rxf6
{[%clk 0:01:10.1]} 25... dxe4 {[%clk 0:01:06.4]} 26. Ne3 {[%clk 0:00:55.9]}
26... Bg7 {[%clk 0:00:57.4]} 27. Ng4 {[%clk 0:00:54.4]} 27... Qd5 {[%clk
0:00:54.5]} 28. Nh6+ {[%clk 0:00:48.4]} 28... Bxh6 {[%clk 0:00:44.8]} 29. Qxh6
{[%clk 0:00:49.3]} 29... Qe5 {[%clk 0:00:45.3]} 30. h4 {[%clk 0:00:31.7]} 30...
e3 {[%clk 0:00:43.8]} 31. Nc1 {[%clk 0:00:24.5]} 31... Qe4 {[%clk 0:00:26]} 32.
R1f3 {[%clk 0:00:24.3]} 32... Qxc2 {[%clk 0:00:24.6]} 33. h5 {[%clk 0:00:23.3]}
33... Bxf3 {[%clk 0:00:23.8]} 34. Rxf3 {[%clk 0:00:20.6]} 34... Qxc1+ {[%clk
0:00:20.3]} 35. Kh2 {[%clk 0:00:20.8]} 35... Qc7+ {[%clk 0:00:19.7]} 36. Kh3
{[%clk 0:00:19.5]} 36... f5 {[%clk 0:00:18.7]} 37. hxg6 {[%clk 0:00:19]} 37...
Qg7 {[%clk 0:00:17.6]} 38. Qh5 {[%clk 0:00:18.6]} 38... f4 {[%clk 0:00:11.2]}
39. Bh6 {[%clk 0:00:17.7]} 39... Qd7 {[%clk 0:00:08.3]} 40. g7 {[%clk
0:00:14.6]} 40... Rf7 {[%clk 0:00:07.2]} 41. Bxf4 {[%clk 0:00:11.7]} 41... e5+
{[%clk 0:00:07.9]} 42. Kh2 {[%clk 0:00:11.8]} 42... exf4 {[%clk 0:00:04.7]} 43.
Qh8# {[%clk 0:00:11.3]} 1-0

[Event "*** Titled Tuesday Blitz"]
[Site "Chess.com"]
[Date "2020.05.12"]
[Round "3"]
[White "Irishchessman16"]
[Black "Korchmar_Vasiliy"]
[Result "0-1"]
[WhiteElo "2398"]
[BlackElo "2624"]
[TimeControl "180+1"]
[EndTime "10:28:49 PDT"]
[Termination "Korchmar_Vasiliy won on time"]

1. e4 {[%clk 0:03:00.4]} 1... c5 {[%clk 0:02:59.9]} 2. Nf3 {[%clk 0:02:59.6]}
2... d6 {[%clk 0:03:00.3]} 3. d4 {[%clk 0:02:59.6]} 3... cxd4 {[%clk 0:03:01.2]}
4. Nxd4 {[%clk 0:03:00]} 4... Nf6 {[%clk 0:03:01.7]} 5. Nc3 {[%clk 0:02:58.8]}
5... Nc6 {[%clk 0:03:02.1]} 6. f3 {[%clk 0:02:55.9]} 6... e5 {[%clk 0:03:01.5]}
7. Nb3 {[%clk 0:02:55]} 7... Be7 {[%clk 0:03:01.4]} 8. Be3 {[%clk 0:02:53.1]}
8... O-O {[%clk 0:03:01.6]} 9. Qd2 {[%clk 0:02:52.9]} 9... Be6 {[%clk
0:03:01.9]} 10. Nd5 {[%clk 0:02:50.8]} 10... a5 {[%clk 0:02:58.8]} 11. a4 {[%clk
0:02:41.2]} 11... Bxd5 {[%clk 0:02:54.4]} 12. exd5 {[%clk 0:02:40.3]} 12... Nb4
{[%clk 0:02:55]} 13. c4 {[%clk 0:02:34.3]} 13... Nd7 {[%clk 0:02:38]} 14. Be2
{[%clk 0:02:32.8]} 14... Bh4+ {[%clk 0:02:29.3]} 15. g3 {[%clk 0:02:31.1]} 15...
Be7 {[%clk 0:02:29.1]} 16. Kf1 {[%clk 0:02:31.1]} 16... f5 {[%clk 0:02:28.6]}
17. Kg2 {[%clk 0:02:28.8]} 17... h6 {[%clk 0:02:01.4]} 18. f4 {[%clk 0:02:19.9]}
18... Bf6 {[%clk 0:01:55.8]} 19. c5 {[%clk 0:02:15.8]} 19... exf4 {[%clk
0:01:48.9]} 20. gxf4 {[%clk 0:02:01.7]} 20... Re8 {[%clk 0:01:30.8]} 21. c6
{[%clk 0:01:54.3]} 21... bxc6 {[%clk 0:01:23.8]} 22. dxc6 {[%clk 0:01:53.7]}
22... Nxc6 {[%clk 0:01:24.7]} 23. Bf3 {[%clk 0:01:41.5]} 23... Nb4 {[%clk
0:01:15.3]} 24. Rhe1 {[%clk 0:01:34.8]} 24... Rc8 {[%clk 0:01:12.8]} 25. Qxd6
{[%clk 0:01:27]} 25... Nc2 {[%clk 0:01:09.9]} 26. Qd5+ {[%clk 0:00:51.8]} 26...
Kh8 {[%clk 0:01:09.3]} 27. Qxf5 {[%clk 0:00:50.6]} 27... Rxe3 {[%clk 0:00:55.5]}
28. Be4 {[%clk 0:00:34.8]} 28... Rxe4 {[%clk 0:00:39.4]} 29. Rxe4 {[%clk
0:00:30.3]} 29... Nxa1 {[%clk 0:00:39.6]} 30. Nxa1 {[%clk 0:00:24.5]} 30... Bxb2
{[%clk 0:00:27.9]} 31. Nb3 {[%clk 0:00:23.4]} 31... Nf6 {[%clk 0:00:23.8]} 32.
Re2 {[%clk 0:00:17.6]} 32... Bc3 {[%clk 0:00:24.1]} 33. Rc2 {[%clk 0:00:14.9]}
33... Qd5+ {[%clk 0:00:23.7]} 34. Qxd5 {[%clk 0:00:12.8]} 34... Nxd5 {[%clk
0:00:24.6]} 35. Kf3 {[%clk 0:00:13.2]} 35... Rf8 {[%clk 0:00:17.5]} 36. Ke4
{[%clk 0:00:12.3]} 36... Nf6+ {[%clk 0:00:18.1]} 37. Kd3 {[%clk 0:00:12.1]}
37... Bb4 {[%clk 0:00:19]} 38. Rc4 {[%clk 0:00:11.4]} 38... Nh5 {[%clk 0:00:19]}
39. Ke3 {[%clk 0:00:10.8]} 39... Nf6 {[%clk 0:00:18.7]} 40. Nd4 {[%clk
0:00:10.3]} 40... Nd5+ {[%clk 0:00:18.6]} 41. Ke4 {[%clk 0:00:09.9]} 41... Nxf4
{[%clk 0:00:19.1]} 42. Nf5 {[%clk 0:00:10.4]} 42... Ne6 {[%clk 0:00:16.8]} 43.
Rc6 {[%clk 0:00:10.4]} 43... Nc5+ {[%clk 0:00:16.7]} 44. Ke5 {[%clk 0:00:09.9]}
44... Nxa4 {[%clk 0:00:15.3]} 45. Ke6 {[%clk 0:00:07.6]} 45... Nc5+ {[%clk
0:00:14.4]} 0-1

[Event "*** Titled Tuesday Blitz"]
[Site "Chess.com"]
[Date "2020.05.12"]
[Round "3"]
[White "LLRChess"]
[Black "Misticpikachu"]
[Result "1-0"]
[WhiteElo "2556"]
[BlackElo "2357"]
[TimeControl "180+1"]
[EndTime "10:28:53 PDT"]
[Termination "LLRChess won by resignation"]

1. Nf3 {[%clk 0:03:00.9]} 1... d5 {[%clk 0:02:59.6]} 2. g3 {[%clk 0:03:01.1]}
2... e6 {[%clk 0:02:59.5]} 3. Bg2 {[%clk 0:03:01.3]} 3... Nf6 {[%clk 0:02:55.3]}
4. O-O {[%clk 0:03:01.8]} 4... Be7 {[%clk 0:02:55.7]} 5. d3 {[%clk 0:03:00.8]}
5... O-O {[%clk 0:02:55.9]} 6. a3 {[%clk 0:03:01]} 6... c5 {[%clk 0:02:55.7]} 7.
Nc3 {[%clk 0:02:59.7]} 7... Nc6 {[%clk 0:02:56]} 8. Bf4 {[%clk 0:02:55.5]} 8...
Bd6 {[%clk 0:02:48.2]} 9. Bg5 {[%clk 0:02:52.3]} 9... h6 {[%clk 0:02:47.2]} 10.
Bxf6 {[%clk 0:02:51.4]} 10... Qxf6 {[%clk 0:02:48.1]} 11. e4 {[%clk 0:02:51.4]}
11... d4 {[%clk 0:02:36.5]} 12. Nb5 {[%clk 0:02:32.5]} 12... e5 {[%clk
0:02:35.8]} 13. a4 {[%clk 0:02:30.4]} 13... a6 {[%clk 0:02:33.1]} 14. Na3 {[%clk
0:02:30.2]} 14... Bg4 {[%clk 0:02:27.6]} 15. h3 {[%clk 0:02:29.5]} 15... Bh5
{[%clk 0:02:22.9]} 16. Nc4 {[%clk 0:02:13.8]} 16... Bc7 {[%clk 0:02:21.3]} 17.
g4 {[%clk 0:02:04]} 17... Bg6 {[%clk 0:02:20.5]} 18. Ne1 {[%clk 0:01:48.7]}
18... Qe6 {[%clk 0:02:01.1]} 19. Bh1 {[%clk 0:01:42.1]} 19... b5 {[%clk
0:01:48.8]} 20. Nd2 {[%clk 0:01:24.3]} 20... Rfb8 {[%clk 0:01:32.4]} 21. Ng2
{[%clk 0:01:20.7]} 21... c4 {[%clk 0:00:57.1]} 22. f4 {[%clk 0:01:12.8]} 22...
exf4 {[%clk 0:00:56]} 23. Nxf4 {[%clk 0:01:08.5]} 23... Bxf4 {[%clk 0:00:56.2]}
24. Rxf4 {[%clk 0:01:08.4]} 24... Qd6 {[%clk 0:00:45.2]} 25. Qf1 {[%clk
0:00:59.5]} 25... cxd3 {[%clk 0:00:43.2]} 26. e5 {[%clk 0:00:44.9]} 26... Qxe5
{[%clk 0:00:39.3]} 27. Bxc6 {[%clk 0:00:43.4]} 27... Ra7 {[%clk 0:00:33.1]} 28.
cxd3 {[%clk 0:00:24.2]} 28... Rc7 {[%clk 0:00:28.6]} 29. Be4 {[%clk 0:00:23.5]}
29... Rc2 {[%clk 0:00:17.3]} 30. Rd1 {[%clk 0:00:22.2]} 30... bxa4 {[%clk
0:00:13.7]} 31. Bxg6 {[%clk 0:00:21.8]} 31... fxg6 {[%clk 0:00:14.6]} 32. Nc4
{[%clk 0:00:19.9]} 32... Qg5 {[%clk 0:00:09]} 33. Qf3 {[%clk 0:00:17.4]} 33...
Re8 {[%clk 0:00:07.9]} 34. Re4 {[%clk 0:00:15.1]} 34... Rf8 {[%clk 0:00:05.7]}
35. Qg3 {[%clk 0:00:15.3]} 35... Rc1 {[%clk 0:00:04.8]} 36. Rxc1 {[%clk
0:00:14.6]} 36... Qxc1+ {[%clk 0:00:05.7]} 37. Re1 {[%clk 0:00:15.1]} 37... Qc2
{[%clk 0:00:04.1]} 38. Rf1 {[%clk 0:00:14.9]} 38... Rxf1+ {[%clk 0:00:03.6]} 39.
Kxf1 {[%clk 0:00:15.8]} 39... Qd1+ {[%clk 0:00:03.6]} 40. Kf2 {[%clk 0:00:14.9]}
40... Qc2+ {[%clk 0:00:03.9]} 41. Ke1 {[%clk 0:00:14.9]} 41... Qc1+ {[%clk
0:00:03.2]} 42. Ke2 {[%clk 0:00:15.3]} 42... Qc2+ {[%clk 0:00:03.6]} 43. Kf1
{[%clk 0:00:10.2]} 43... Qd1+ {[%clk 0:00:03.6]} 44. Kg2 {[%clk 0:00:10.3]}
44... Qd2+ {[%clk 0:00:03.6]} 45. Nxd2 {[%clk 0:00:08.9]} 1-0

[Event "*** Titled Tuesday Blitz"]
[Site "Chess.com"]
[Date "2020.05.12"]
[Round "3"]
[White "Yaacovn"]
[Black "gahryman"]
[Result "1-0"]
[WhiteElo "2848"]
[BlackElo "2634"]
[TimeControl "180+1"]
[EndTime "10:28:54 PDT"]
[Termination "Yaacovn won by resignation"]

1. d4 {[%clk 0:03:00.9]} 1... Nf6 {[%clk 0:02:44.1]} 2. Nf3 {[%clk 0:03:00.6]}
2... g6 {[%clk 0:02:42.3]} 3. e3 {[%clk 0:03:00.7]} 3... Bg7 {[%clk 0:02:42.6]}
4. Be2 {[%clk 0:03:01.2]} 4... d6 {[%clk 0:02:43.4]} 5. O-O {[%clk 0:03:01.6]}
5... O-O {[%clk 0:02:43.7]} 6. b3 {[%clk 0:03:02.2]} 6... b6 {[%clk 0:02:42.7]}
7. Bb2 {[%clk 0:03:02.4]} 7... Bb7 {[%clk 0:02:43.3]} 8. c4 {[%clk 0:03:01.5]}
8... e6 {[%clk 0:02:43.5]} 9. Qc2 {[%clk 0:02:58.6]} 9... Nbd7 {[%clk
0:02:38.2]} 10. Nc3 {[%clk 0:02:58.6]} 10... Qe7 {[%clk 0:02:37.8]} 11. Rad1
{[%clk 0:02:58]} 11... Rad8 {[%clk 0:02:36.4]} 12. Qb1 {[%clk 0:02:51.8]} 12...
a6 {[%clk 0:02:34.9]} 13. h3 {[%clk 0:02:50.4]} 13... c5 {[%clk 0:02:34.3]} 14.
Rd2 {[%clk 0:02:48.8]} 14... cxd4 {[%clk 0:02:29.8]} 15. Nxd4 {[%clk 0:02:48.3]}
15... Nc5 {[%clk 0:02:29.3]} 16. Bf3 {[%clk 0:02:46.3]} 16... Qc7 {[%clk
0:02:24.3]} 17. Rfd1 {[%clk 0:02:44.6]} 17... Rc8 {[%clk 0:01:51.5]} 18. Bxb7
{[%clk 0:02:41.4]} 18... Qxb7 {[%clk 0:01:50.7]} 19. Nf3 {[%clk 0:02:38.1]}
19... Nce4 {[%clk 0:01:49.2]} 20. Nxe4 {[%clk 0:02:33.5]} 20... Nxe4 {[%clk
0:01:50.1]} 21. Rd3 {[%clk 0:02:21.5]} 21... b5 {[%clk 0:01:48.4]} 22. Bxg7
{[%clk 0:02:17]} 22... Kxg7 {[%clk 0:01:49.3]} 23. Qa1+ {[%clk 0:01:54.9]} 23...
Kg8 {[%clk 0:01:48.9]} 24. cxb5 {[%clk 0:01:43.5]} 24... axb5 {[%clk 0:01:48.4]}
25. Nd2 {[%clk 0:01:39.4]} 25... Nxd2 {[%clk 0:01:45.4]} 26. R3xd2 {[%clk
0:01:38.6]} 26... d5 {[%clk 0:01:46.3]} 27. Rc1 {[%clk 0:01:37.4]} 27... Rxc1+
{[%clk 0:01:44.4]} 28. Qxc1 {[%clk 0:01:38.3]} 28... Rc8 {[%clk 0:01:44.8]} 29.
Rc2 {[%clk 0:01:38]} 29... Rxc2 {[%clk 0:01:44.7]} 30. Qxc2 {[%clk 0:01:38.9]}
30... b4 {[%clk 0:01:45.6]} 31. Qc5 {[%clk 0:01:37.8]} 31... h5 {[%clk
0:01:43.1]} 32. h4 {[%clk 0:01:33.9]} 32... Qa6 {[%clk 0:01:39.2]} 33. Qxb4
{[%clk 0:01:28.3]} 33... Qxa2 {[%clk 0:01:39]} 34. Qb8+ {[%clk 0:01:23.4]} 34...
Kh7 {[%clk 0:01:37.5]} 35. b4 {[%clk 0:01:21.6]} 35... Qb1+ {[%clk 0:01:31.5]}
36. Kh2 {[%clk 0:01:20.8]} 36... Qb2 {[%clk 0:01:27.6]} 37. Qf4 {[%clk
0:01:06.2]} 37... Kg8 {[%clk 0:01:24.4]} 38. Qb8+ {[%clk 0:00:48.5]} 38... Kg7
{[%clk 0:01:22.7]} 39. Kg3 {[%clk 0:00:45.5]} 39... Qc3 {[%clk 0:01:11.8]} 40.
b5 {[%clk 0:00:42.2]} 40... Qc4 {[%clk 0:01:11.4]} 41. b6 {[%clk 0:00:32.2]}
41... Qg4+ {[%clk 0:00:23.6]} 42. Kh2 {[%clk 0:00:32]} 42... Qxh4+ {[%clk
0:00:24.5]} 43. Kg1 {[%clk 0:00:32.1]} 43... Qb4 {[%clk 0:00:23.2]} 44. b7
{[%clk 0:00:21.9]} 44... Qe1+ {[%clk 0:00:22.3]} 45. Kh2 {[%clk 0:00:22]} 45...
Qxf2 {[%clk 0:00:23.2]} 46. Qf4 {[%clk 0:00:18.5]} 46... Qb2 {[%clk 0:00:19.8]}
47. b8=Q {[%clk 0:00:16.9]} 47... Qc3 {[%clk 0:00:20.7]} 48. Qbe5+ {[%clk
0:00:16.1]} 48... Qxe5 {[%clk 0:00:20.9]} 49. Qxe5+ {[%clk 0:00:17]} 49... Kg8
{[%clk 0:00:21.8]} 50. Kg3 {[%clk 0:00:16.5]} 50... Kf8 {[%clk 0:00:21.9]} 51.
Qd6+ {[%clk 0:00:15.5]} 51... Kg7 {[%clk 0:00:21.7]} 52. Kf4 {[%clk 0:00:15.7]}
52... Kf6 {[%clk 0:00:21.6]} 53. Qd8+ {[%clk 0:00:15.4]} 53... Kg7 {[%clk
0:00:21.4]} 54. Kg5 {[%clk 0:00:15.7]} 54... h4 {[%clk 0:00:21.5]} 55. Qf6+
{[%clk 0:00:15.5]} 55... Kg8 {[%clk 0:00:20.6]} 56. Kh6 {[%clk 0:00:13.2]} 1-0